bitfinex-derivatives/quotes_BTCF0:USTF0_20251209
["timestamp","ask_amount","ask_price","bid_price","bid_amount"]
[1765292865163,0.3608,91138.0,91135.0,0.0109729]
[1765292865569,0.3608,91138.0,91132.0,0.0109733]
[1765292865764,0.3608,91138.0,91136.0,0.0109728]
[1765292865959,0.3608,91138.0,91129.0,0.3608]
[1765292866556,0.3608,91138.0,91134.0,0.0109729]
[1765292866954,0.3608,91138.0,91129.0,0.3608]
[1765292867271,0.3608,91138.0,91123.0,0.00016458]
[1765292867562,0.0109734,91131.0,91123.0,0.00016458]
[1765292867763,0.0109742,91124.0,91123.0,0.00016458]
[1765292868566,0.0109746,91121.0,91120.0,9.348e-05]
[1765292868771,0.0109778,91095.0,91087.0,0.3608]
[1765292868962,0.0109778,91095.0,91088.0,0.0109786]
[1765292868963,0.3608,91095.0,91088.0,0.0109786]
[1765292869272,0.3608,91095.0,91087.0,0.3608]
[1765292869273,0.3717778,91095.0,91087.0,0.3608]
[1765292869764,0.00011447,91094.0,91083.0,0.0109791]
[1765292870165,0.00011447,91094.0,91082.0,0.00016458]
[1765292870565,0.010978,91093.0,91082.0,0.01114388]
[1765292871071,0.00011447,91094.0,91082.0,0.01114388]
[1765292871269,0.00011447,91094.0,91082.0,0.00016458]
[1765292871571,0.01109247,91094.0,91082.0,0.01114388]
[1765292872068,0.00011447,91094.0,91086.0,0.0109788]
[1765292872773,0.00011447,91094.0,91082.0,0.00016458]
[1765292873075,0.00011447,91094.0,91084.0,0.0109789]
[1765292873667,0.00011447,91094.0,91082.0,0.00016458]
[1765292874172,0.010978,91093.0,91084.0,0.010979]
[1765292874374,0.010978,91093.0,91082.0,0.00016458]
[1765292874375,0.00011447,91094.0,91082.0,0.00016458]
[1765292874577,0.00011447,91094.0,91091.0,0.0109782]
[1765292875568,0.00011447,91094.0,91086.0,0.3608]
[1765292875869,0.0109782,91092.0,91086.0,0.3608]
[1765292876069,0.0109789,91086.0,91082.0,0.00016458]
[1765292876270,0.0109784,91090.0,91082.0,0.01114378]
[1765292876471,0.010978,91093.0,91084.0,0.010979]
[1765292876768,0.36091447,91094.0,91082.0,0.00016458]
[1765292876960,0.36091447,91094.0,91084.0,0.010979]
[1765292876961,0.0109783,91091.0,91084.0,0.010979]
[1765292877369,0.0109783,91091.0,91086.0,0.0109787]
[1765292877569,0.37189237,91094.0,91082.0,0.00016458]
[1765292877964,0.37189237,91094.0,91088.0,0.0109785]
[1765292878164,0.37189237,91094.0,91085.0,0.0109789]
[1765292878365,0.36091447,91094.0,91088.0,0.0109785]
[1765292878674,0.36091447,91094.0,91090.0,0.0109782]
[1765292879063,0.36091447,91094.0,91087.0,0.0109787]
[1765292879564,0.010978,91093.0,91085.0,0.0109788]
[1765292879765,0.36091447,91094.0,91082.0,0.00016458]
[1765292879966,0.0109783,91091.0,91082.0,0.00016458]
[1765292880173,0.3608,91086.0,91082.0,0.00016458]
[1765292880365,0.0109789,91085.0,91082.0,0.00016458]
[1765292880770,0.010983,91051.0,91050.0,0.3608]
[1765292880976,0.00010173,91051.0,91044.0,0.00012307]
[1765292881579,0.0109834,91048.0,91044.0,0.00012307]
[1765292881761,0.00010173,91051.0,91044.0,0.00012307]
[1765292881962,0.00010173,91051.0,91048.0,0.0109834]
[1765292882168,0.00010173,91051.0,91044.0,0.00012307]
[1765292882364,0.0109834,91048.0,91044.0,0.00012307]
[1765292882569,0.3608,91045.0,91044.0,0.00012307]
[1765292885177,0.3608,91045.0,91037.0,0.00016468]
[1765292885178,0.0109844,91040.0,91037.0,0.00016468]
[1765292886064,0.0109839,91044.0,91010.0,0.3608]
[1765292886267,0.3608,91024.0,91021.0,0.0109866]
[1765292886469,0.00013894,91023.0,91010.0,0.3399866]
[1765292886962,0.00013894,91023.0,91020.0,0.0109867]
[1765292887166,0.00013894,91023.0,91015.0,0.0109873]
[1765292887475,0.00013894,91023.0,91012.0,0.00016478]
[1765292887667,0.0109868,91020.0,91012.0,0.00016478]
[1765292887867,0.3717875,91014.0,91012.0,0.00016478]
[1765292888072,0.3608,91014.0,91012.0,0.00016478]
[1765292888470,0.3608,91014.0,90991.0,0.88132]
[1765292888471,0.3608,91014.0,90998.0,0.0109894]
[1765292888769,0.3608,91014.0,90991.0,0.88132]
[1765292888770,0.3608,91006.0,90992.0,0.0109901]
[1765292888978,0.00010196,91005.0,91000.0,0.0109892]
[1765292889370,0.00010196,91005.0,90991.0,0.88132]
[1765292889371,0.00010196,91005.0,90996.0,0.0109896]
[1765292889867,0.3608,91016.0,91015.0,0.0109874]
[1765292890072,0.3608,91035.0,91030.0,0.0109856]
[1765292891074,0.0003036,91031.0,91025.0,0.0109862]
[1765292891376,0.0003036,91031.0,91028.0,0.0109857]
[1765292894776,0.0109856,91030.0,91015.0,0.0109873]
[1765292894981,0.3611036,91031.0,91021.0,0.0109866]
[1765292895178,0.0109864,91023.0,91014.0,0.3608]
[1765292895377,0.0109883,91008.0,91004.0,0.36101977]
[1765292895577,7.815e-05,91007.0,91004.0,0.36101977]
[1765292895779,0.01106645,91007.0,91004.0,0.36101977]
[1765292895980,7.815e-05,91007.0,91004.0,0.36101977]
[1765292896374,7.815e-05,91007.0,91004.0,0.00021977]
[1765292896573,0.01106645,91007.0,91004.0,0.00021977]
[1765292896879,7.815e-05,91007.0,91004.0,0.00021977]
[1765292898391,0.36087815,91007.0,91004.0,0.00021977]
[1765292899281,0.0109885,91006.0,91004.0,0.00021977]
[1765292899682,0.0109885,91006.0,90990.0,0.00109903]
[1765292899880,0.0109922,90976.0,90974.0,0.00013733]
[1765292900182,0.0109922,90976.0,90933.0,0.0109972]
[1765292900183,0.0109929,90970.0,90938.0,0.0109966]
[1765292900389,0.05915875,91009.0,90930.0,0.01115836]
[1765292900579,0.19335797,90980.0,90966.0,0.00010992]
[1765292900886,0.0109919,90978.0,90966.0,0.00010992]
[1765292901091,0.0109927,90971.0,90966.0,0.00010992]
[1765292902082,0.0109933,90966.0,90940.0,0.00109963]
[1765292902392,0.01112365,90966.0,90940.0,0.00109963]
[1765292902587,0.3608,90953.0,90940.0,0.00109963]
[1765292902979,0.3608,90944.0,90940.0,0.00109963]
[1765292905489,0.3608,90944.0,90928.0,0.3608]
[1765292905490,0.4,90943.0,90928.0,0.3608]
[1765292905691,0.4,90943.0,90892.0,0.05956695]
[1765292905692,0.7325979,90929.0,90900.0,0.3608]
[1765292905881,0.19335797,90930.0,90901.0,0.3608]
[1765292906084,0.3608,90916.0,90897.0,0.3608]
[1765292906987,0.3608,90916.0,90905.0,0.3608]
[1765292907184,0.3608,90927.0,90905.0,0.3608]
[1765292907385,0.0109991,90918.0,90905.0,0.3608]
[1765292907584,0.0109991,90918.0,90897.0,0.3608]
[1765292907780,0.011002,90895.0,90890.0,0.00110024]
[1765292907982,0.3608,90895.0,90890.0,0.00110024]
[1765292908386,0.011002,90894.0,90890.0,0.00110024]
[1765292908586,0.3718019,90895.0,90890.0,0.00110024]
[1765292908788,0.00012083,90894.0,90890.0,0.00110024]
[1765292909502,0.0110021,90893.0,90890.0,0.00110024]
[1765292909686,0.00012083,90894.0,90890.0,0.00110024]
[1765292909893,0.01112283,90894.0,90890.0,0.00110024]
[1765292910896,0.0110025,90890.0,90869.0,0.011005]
[1765292911099,0.3608,90880.0,90870.0,0.55415797]
[1765292911293,0.3608,90891.0,90870.0,0.55415797]
[1765292911495,0.3608,90891.0,90872.0,0.0110046]
[1765292911692,0.3608,90891.0,90870.0,0.55415797]
[1765292911891,0.3718025,90891.0,90875.0,0.0110042]
[1765292912190,0.3608,90882.0,90862.0,0.3608]
[1765292912595,0.00016498,90883.0,90862.0,0.3608]
[1765292912596,0.00016498,90883.0,90871.0,0.3608]
[1765292912801,0.00016498,90883.0,90871.0,0.3718048]
[1765292913205,0.36096498,90883.0,90862.0,0.3718058]
[1765292913391,0.0110035,90882.0,90866.0,0.0110054]
[1765292913594,0.00016498,90883.0,90870.0,0.55415797]
[1765292913793,0.00016498,90883.0,90878.0,0.0110039]
[1765292914193,0.00016498,90883.0,90874.0,0.0110044]
[1765292914398,0.00016498,90883.0,90870.0,0.55415797]
[1765292914399,0.3608,90881.0,90870.0,0.3608]
[1765292914701,0.3608,90881.0,90875.0,0.0110043]
[1765292914907,0.00016498,90883.0,90871.0,0.0110047]
[1765292915405,0.3608,90881.0,90870.0,0.3608]
[1765292915796,0.0110045,90874.0,90862.0,0.3608]
[1765292916096,0.0110054,90866.0,90862.0,0.3608]
[1765292916295,0.37191613,90866.0,90847.0,0.3608]
[1765292916709,0.36091073,90866.0,90849.0,0.0110074]
[1765292917006,0.00011073,90866.0,90855.0,0.3608]
[1765292917197,0.00011073,90866.0,90862.0,0.0110059]
[1765292917600,0.00011073,90866.0,90858.0,0.0110063]
[1765292917800,0.00011073,90866.0,90855.0,0.3608]
[1765292918307,0.00011073,90866.0,90847.0,0.3608]
[1765292918308,0.00011073,90866.0,90853.0,0.0110069]
[1765292918900,0.01111613,90866.0,90849.0,0.0110074]
[1765292919100,0.01111613,90866.0,90853.0,0.0110069]
[1765292919299,0.01111613,90866.0,90847.0,0.3608]
[1765292919300,0.00011073,90866.0,90856.0,0.0110066]
[1765292919503,0.00011073,90866.0,90852.0,0.011007]
[1765292919705,0.00011073,90866.0,90847.0,0.3608]
[1765292919706,0.00011073,90866.0,90860.0,0.011006]
[1765292920005,0.00011073,90866.0,90850.0,0.19335797]
[1765292920203,0.00011073,90866.0,90859.0,0.0110062]
[1765292920402,0.00011073,90866.0,90865.0,0.01210604]
[1765292920593,0.3608,90886.0,90865.0,0.37290604]
[1765292920794,0.3608,90886.0,90878.0,0.0110038]
[1765292920999,0.01116838,90883.0,90875.0,0.3608]
[1765292921197,0.00016498,90883.0,90876.0,0.0110042]
[1765292921404,0.00016498,90883.0,90875.0,0.3608]
[1765292921405,0.00016498,90883.0,90877.0,0.0110041]
[1765292921611,0.00011175,90882.0,90877.0,0.0110041]
[1765292921801,0.00011175,90882.0,90865.0,0.36190054]
[1765292922109,0.00011175,90882.0,90868.0,0.011005]
[1765292922110,0.3608,90876.0,90868.0,0.011005]
[1765292922517,0.0110052,90868.0,90865.0,0.00110054]
[1765292922700,0.3608,90866.0,90865.0,0.00110054]
[1765292923102,0.3608,90866.0,90852.0,0.3608]
[1765292923404,0.0110064,90858.0,90852.0,0.3608]
[1765292923599,0.3608,90853.0,90840.0,0.00110084]
[1765292923912,0.0110076,90848.0,90840.0,0.00110084]
[1765292924210,0.00013188,90847.0,90840.0,0.00110084]
[1765292924414,0.00013188,90847.0,90843.0,0.0110081]
[1765292924605,0.00013188,90847.0,90846.0,0.0110078]
[1765292925111,0.00013188,90847.0,90840.0,0.00110084]
[1765292925505,0.00013188,90847.0,90845.0,0.01113444]
[1765292926103,0.00013188,90847.0,90845.0,0.00012664]
[1765292926318,0.0110078,90846.0,90845.0,0.00012664]
[1765292928014,0.0110084,90841.0,90840.0,0.00110084]
[1765292928309,0.3608,90841.0,90815.0,0.00110115]
[1765292928516,0.0110106,90823.0,90815.0,0.00110115]
[1765292928817,0.0110114,90816.0,90815.0,0.00110115]
[1765292929013,0.36093972,90816.0,90815.0,0.00110115]
[1765292931210,0.36093972,90816.0,90790.0,0.36190145]
[1765292931411,0.00016516,90812.0,90790.0,0.37291605]
[1765292931619,0.3608,90808.0,90801.0,0.0110132]
[1765292931802,0.3608,90808.0,90790.0,0.36190145]
[1765292932011,0.3608,90808.0,90800.0,0.0110133]
[1765292932215,0.3608,90808.0,90795.0,0.0110139]
[1765292932417,0.3608,90800.0,90791.0,0.0110144]
[1765292932722,0.3608,90800.0,90790.0,0.00110145]
[1765292932723,8.873e-05,90799.0,90790.0,0.00110145]
[1765292933104,0.01110233,90799.0,90790.0,0.00110145]
[1765292933315,0.3608,90791.0,90790.0,0.00110145]
[1765292933614,0.38459714,90791.0,90763.0,0.3608]
[1765292933819,0.00016516,90787.0,90784.0,0.0110153]
[1765292934112,0.00016516,90787.0,90781.0,0.0110156]
[1765292934319,0.3608,90782.0,90771.0,0.3608]
[1765292934509,0.00013057,90781.0,90771.0,0.3608]
[1765292934714,0.3608,90772.0,90745.0,0.3608]
[1765292934920,0.3608,90766.0,90748.0,0.0110197]
[1765292935116,0.3608,90766.0,90747.0,0.3608]
[1765292935117,0.38460757,90766.0,90747.0,0.3608]
[1765292935415,0.0110181,90761.0,90740.0,0.00110206]
[1765292935633,0.3608,90752.0,90740.0,0.00110206]
[1765292935822,0.0110194,90751.0,90740.0,0.00110206]
[1765292936030,0.3608,90742.0,90740.0,0.00110206]
[1765292936518,0.00014237,90741.0,90740.0,0.00110206]
[1765292936714,0.00014237,90741.0,90717.0,0.3608]
[1765292936715,0.40005235,90741.0,90717.0,0.3608]
[1765292937023,0.0110227,90724.0,90689.0,0.00011533]
[1765292937206,0.19335797,90700.0,90689.0,0.00011533]
[1765292937410,0.0110257,90699.0,90689.0,0.00011533]
[1765292937614,0.0110267,90690.0,90689.0,0.00011533]
[1765292937918,0.0110292,90671.0,90642.0,0.0110325]
[1765292938414,0.19335797,90675.0,90646.0,0.011032]
[1765292938610,0.01119375,90677.0,90646.0,0.011032]
[1765292938804,0.0110292,90671.0,90641.0,0.01125335]
[1765292939012,0.01115133,90676.0,90651.0,0.0110315]
[1765292939307,0.0110293,90670.0,90643.0,0.0110324]
[1765292939511,0.19335797,90675.0,90643.0,0.0110325]
[1765292939720,0.19335797,90675.0,90641.0,0.00022065]
[1765292940019,0.19335797,90660.0,90641.0,0.00022065]
[1765292940318,8.925e-05,90659.0,90641.0,0.00022065]
[1765292940613,0.00016535,90677.0,90641.0,0.00022065]
[1765292940814,0.00016535,90677.0,90660.0,0.0110303]
[1765292941014,0.19335797,90670.0,90641.0,0.01125325]
[1765292941205,0.19335797,90660.0,90641.0,0.00022065]
[1765292941406,0.00016535,90677.0,90641.0,0.00022065]
[1765292941407,0.0110307,90658.0,90641.0,0.00022065]
[1765292941607,0.00013949,90659.0,90641.0,0.00022065]
[1765292941608,0.0110316,90650.0,90641.0,0.00022065]
[1765292941921,0.00013232,90649.0,90641.0,0.00022065]
[1765292942125,0.01116412,90649.0,90641.0,0.00022065]
[1765292942414,0.0110325,90643.0,90641.0,0.00022065]
[1765292942916,8.01e-05,90642.0,90641.0,0.00022065]
[1765292944605,0.3608801,90642.0,90641.0,0.00022065]
[1765292946014,0.0110327,90641.0,90640.0,0.00110327]
[1765292946418,0.0110348,90624.0,90615.0,0.00110358]
[1765292946631,0.3608,90619.0,90615.0,0.00110358]
[1765292946915,0.0110355,90618.0,90615.0,0.00110358]
[1765292947307,0.3608,90619.0,90615.0,0.00110358]
[1765292947512,0.3608,90616.0,90615.0,0.00110358]
[1765292948222,7.974e-05,90623.0,90615.0,0.00110358]
[1765292948521,0.3608,90616.0,90615.0,0.00110358]
[1765292949112,0.33580712,90616.0,90615.0,0.00110358]
[1765292949308,7.974e-05,90623.0,90615.0,0.00110358]
[1765292949510,7.974e-05,90623.0,90615.0,0.01213938]
[1765292949920,7.974e-05,90623.0,90615.0,0.00110358]
[1765292950424,0.3608,90637.0,90632.0,0.0110337]
[1765292950615,0.3608,90637.0,90631.0,0.0110339]
[1765292950816,0.3608,90637.0,90621.0,0.3608]
[1765292951015,0.34963276,90637.0,90635.0,0.0110334]
[1765292951216,0.3608,90648.0,90636.0,0.0110333]
[1765292951516,0.00011552,90647.0,90639.0,0.0110329]
[1765292951721,0.00011552,90647.0,90643.0,0.0110324]
[1765292951921,0.00011552,90647.0,90642.0,0.0110325]
[1765292952121,0.00011552,90647.0,90646.0,0.0110321]
[1765292952423,0.0110321,90646.0,90633.0,0.00016546]
[1765292952612,0.00011552,90647.0,90634.0,0.0110335]
[1765292952814,0.0110329,90640.0,90633.0,0.00016546]
[1765292953020,0.00011552,90647.0,90633.0,0.00016546]
[1765292953329,0.00011552,90647.0,90644.0,0.0110322]
[1765292953520,0.06764,90705.0,90637.0,0.2657769]
[1765292953822,0.01115376,90710.0,90667.0,0.0110295]
[1765292953823,0.0110282,90679.0,90667.0,0.0110295]
[1765292954326,0.0110259,90698.0,90670.0,0.0110291]
[1765292954327,0.0110276,90683.0,90670.0,0.0110291]
[1765292954527,0.00012238,90682.0,90673.0,0.0110288]
[1765292954821,0.00012238,90682.0,90674.0,0.0110286]
[1765292955024,0.00012238,90682.0,90678.0,0.0110282]
[1765292955614,0.00012238,90682.0,90680.0,0.011028]
[1765292956328,0.00016546,90686.0,90681.0,0.0110278]
[1765292956729,0.0110289,90673.0,90669.0,0.3608]
[1765292957033,0.0110289,90673.0,90658.0,0.3608]
[1765292957216,0.3608,90685.0,90658.0,0.3608]
[1765292957217,0.3608,90668.0,90658.0,0.3608]
[1765292957422,0.3718294,90668.0,90658.0,0.3608]
[1765292958821,0.3608,90668.0,90661.0,0.0110302]
[1765292959233,0.3608,90668.0,90665.0,0.0110298]
[1765292959932,0.3608,90668.0,90664.0,0.0110299]
[1765292960329,0.3608,90668.0,90660.0,0.0110304]
[1765292960530,0.3608,90668.0,90658.0,0.3608]
[1765292960727,8.979e-05,90672.0,90668.0,0.0110294]
[1765292961228,8.979e-05,90672.0,90668.0,0.4110294]
[1765292962132,8.979e-05,90672.0,90671.0,0.3608]
[1765292962930,8.979e-05,90672.0,90668.0,0.4110294]
[1765292963132,8.979e-05,90672.0,90671.0,0.3608]
[1765292963632,0.00016546,90686.0,90685.0,0.0110274]
[1765292963817,0.00016546,90686.0,90685.0,0.3718274]
[1765292964017,0.13288845,90720.0,90685.0,0.3718274]
[1765292964018,0.3608,90710.0,90708.0,0.0110245]
[1765292964222,0.1920472,90730.0,90708.0,0.0110245]
[1765292964223,0.02377792,90709.0,90708.0,0.0110245]
[1765292964724,0.0110222,90728.0,90716.0,0.0110235]
[1765292964927,0.0110237,90716.0,90713.0,0.00016535]
[1765292965118,0.0110223,90727.0,90713.0,0.00016535]
[1765292965322,0.0110225,90725.0,90717.0,0.14391185]
[1765292965519,0.02380229,90724.0,90720.0,0.011023]
[1765292965727,0.02380229,90723.0,90720.0,0.0110231]
[1765292966025,0.02380229,90722.0,90720.0,0.0110231]
[1765292966330,0.00016535,90731.0,90714.0,0.0110238]
[1765292966331,0.02381341,90721.0,90714.0,0.0110238]
[1765292966629,0.0110232,90719.0,90713.0,0.00016535]
[1765292966819,0.02381341,90718.0,90713.0,0.00016535]
[1765292967227,0.0110238,90714.0,90713.0,0.00016535]
[1765292967633,0.03483721,90714.0,90713.0,0.00016535]
[1765292967948,0.02381341,90714.0,90713.0,0.00016535]
[1765292969137,0.0110229,90723.0,90714.0,0.0110238]
[1765292969341,0.02378487,90722.0,90717.0,0.0110234]
[1765292969544,0.02378487,90721.0,90717.0,0.0110234]
[1765292969839,0.02378487,90720.0,90719.0,0.3608]
[1765292970137,0.00022065,90732.0,90718.0,0.3608]
[1765292970336,0.00022065,90732.0,90718.0,0.3718233]
[1765292970544,0.0110228,90723.0,90713.0,0.00016535]
[1765292970835,0.3608,90716.0,90713.0,0.00016535]
[1765292971035,0.0110238,90714.0,90713.0,0.00016535]
[1765292971236,0.03479907,90714.0,90713.0,0.00016535]
[1765292971432,0.0110241,90712.0,90690.0,0.3608]
[1765292971634,0.3608,90700.0,90690.0,0.3608]
[1765292971839,0.3608,90700.0,90685.0,0.3608]
[1765292972140,0.3608,90700.0,90671.0,0.3608]
[1765292972141,0.3608,90692.0,90672.0,0.0110288]
[1765292972341,0.3608,90692.0,90680.0,0.3608]
[1765292972532,0.02377862,90691.0,90680.0,0.3608]
[1765292972836,0.3608,90692.0,90680.0,0.49368845]
[1765292973027,0.3608,90692.0,90688.0,0.0110269]
[1765292973232,0.02378485,90691.0,90677.0,0.00016535]
[1765292973427,0.3608,90692.0,90677.0,0.00016535]
[1765292973731,0.0237849,90691.0,90677.0,0.00016535]
[1765292973927,0.3608,90692.0,90682.0,0.0110277]
[1765292974132,0.02378474,90691.0,90684.0,0.0110274]
[1765292974440,0.3608,90692.0,90691.0,0.0110266]
[1765292974634,0.38459106,90692.0,90691.0,0.0110266]
[1765292974841,0.38459106,90692.0,90690.0,0.0110267]
[1765292975036,0.3608,90692.0,90690.0,0.0110267]
[1765292975335,0.02379857,90691.0,90690.0,0.0110267]
[1765292975544,0.00016535,90695.0,90694.0,0.0110263]
[1765292977837,0.00016535,90695.0,90694.0,0.4110263]
[1765292978138,0.05915875,90728.0,90710.0,0.0110243]
[1765292978342,0.38463385,90711.0,90710.0,0.0110243]
[1765292978733,0.38463385,90711.0,90707.0,0.0110246]
[1765292978936,0.02383385,90710.0,90690.0,0.13288845]
[1765292979145,0.3608,90701.0,90691.0,0.00016535]
[1765292979439,0.02383385,90700.0,90691.0,0.00016535]
[1765292980239,0.02383385,90700.0,90691.0,0.01119195]
[1765292980436,0.011026,90697.0,90691.0,0.01119195]
[1765292980636,0.3608,90693.0,90691.0,0.00016535]
[1765292980837,0.02383385,90692.0,90691.0,0.00016535]
[1765292981232,0.02383385,90692.0,90691.0,0.01119195]
[1765292981431,0.02383385,90692.0,90691.0,0.00016535]
[1765292982949,0.3608,90692.0,90691.0,0.00016535]
[1765292983248,0.38471057,90692.0,90691.0,0.00016535]
[1765292983838,0.011027,90688.0,90670.0,0.13288845]
[1765292984042,0.02391057,90687.0,90664.0,0.0110298]
[1765292984243,0.02391057,90686.0,90679.0,0.0110281]
[1765292984542,0.02391057,90685.0,90682.0,0.0110277]
[1765292984738,0.02391057,90684.0,90682.0,0.0110277]
[1765292984939,0.05915875,90689.0,90685.0,0.0110273]
[1765292985546,0.05915875,90689.0,90684.0,0.0110274]
[1765292985741,0.05915875,90689.0,90681.0,0.0110278]
[1765292985943,0.05915875,90689.0,90683.0,0.0110275]
[1765292986249,0.02393876,90688.0,90682.0,0.0110276]
[1765292986451,0.02393876,90687.0,90682.0,0.0110276]
[1765292986645,0.02393876,90686.0,90684.0,0.0110274]
[1765292986843,0.02393876,90685.0,90682.0,0.0110277]
[1765292987046,0.02393876,90684.0,90682.0,0.0110277]
[1765292987351,0.02393876,90683.0,90682.0,0.0110277]
[1765292987548,0.02393876,90683.0,90682.0,0.3718277]
[1765292988037,0.02393876,90683.0,90682.0,0.0110277]
[1765292989749,0.02393876,90683.0,90682.0,0.3718277]
[1765292992452,0.0110274,90685.0,90682.0,0.3608]
[1765292992657,0.02370218,90684.0,90682.0,0.3608]
[1765292992848,0.02370218,90683.0,90682.0,0.3608]
[1765292993045,0.02370218,90685.0,90682.0,0.3718277]
[1765292993245,0.0110267,90691.0,90685.0,0.0110273]
[1765292993446,0.02371511,90690.0,90685.0,0.0110273]
[1765292993646,0.02371511,90689.0,90687.0,0.011027]
[1765292993853,0.02371511,90688.0,90687.0,0.011027]
[1765292994648,0.02371511,90688.0,90685.0,0.001]
[1765292994853,0.02371511,90687.0,90685.0,0.001]
[1765292995051,0.02371511,90686.0,90685.0,0.001]
[1765292995256,0.02371511,90686.0,90684.0,0.0110274]
[1765292995456,0.02371511,90685.0,90684.0,0.0110274]
[1765292996051,0.02083554,90688.0,90684.0,0.7608]
[1765292996362,0.42014466,90712.0,90711.0,0.0110242]
[1765292996556,0.3608,90712.0,90711.0,0.0110242]
[1765292998148,0.38118759,90712.0,90711.0,0.0130242]
[1765292998554,0.022,90712.0,90711.0,0.0130242]
[1765292998857,0.022,90712.0,90711.0,0.002]
[1765293000554,0.0110252,90703.0,90702.0,0.00016535]
[1765293000750,0.011028,90680.0,90672.0,0.3608]
[1765293001058,0.05938552,90691.0,90676.0,0.3608]
[1765293001259,0.3608,90692.0,90664.0,0.3608]
[1765293001260,0.011028,90680.0,90664.0,0.3608]
[1765293001450,0.011029,90672.0,90647.0,0.3718319]
[1765293001649,0.011029,90672.0,90619.0,0.09947089]
[1765293001650,0.3608,90654.0,90650.0,0.00016545]
[1765293002049,0.0110312,90653.0,90650.0,0.00016545]
[1765293002253,0.3608,90654.0,90650.0,0.00016545]
[1765293002552,7.733e-05,90653.0,90650.0,0.00016545]
[1765293003058,0.0110314,90652.0,90650.0,0.00016545]
[1765293003250,0.0110314,90652.0,90620.0,0.13288845]
[1765293003251,0.0110333,90636.0,90621.0,0.011035]
[1765293003450,0.0110337,90633.0,90620.0,0.13288845]
[1765293003655,7.733e-05,90635.0,90617.0,0.0110356]
[1765293003863,7.733e-05,90635.0,90621.0,0.0110351]
[1765293004055,7.733e-05,90635.0,90631.0,0.0110339]
[1765293004255,7.733e-05,90635.0,90634.0,0.3608]
[1765293005061,0.00016545,90642.0,90641.0,0.0110327]
[1765293006261,0.0110337,90634.0,90624.0,0.00016545]
[1765293006468,0.011034,90631.0,90624.0,0.00016545]
[1765293006765,0.3608,90634.0,90624.0,0.00016545]
[1765293007267,0.3608,90634.0,90628.0,0.0110342]
[1765293007463,0.3608,90634.0,90624.0,0.00016545]
[1765293007870,0.3668,90634.0,90624.0,0.00116545]
[1765293008172,0.02352566,90633.0,90632.0,0.0110338]
[1765293008361,0.02352566,90633.0,90624.0,0.00116545]
[1765293008362,0.02352566,90633.0,90628.0,0.0110342]
[1765293008562,0.3668,90634.0,90624.0,0.00116545]
[1765293008762,0.03454897,90633.0,90624.0,0.00116545]
[1765293009071,0.006,90634.0,90631.0,0.0110338]
[1765293009456,0.00016545,90642.0,90631.0,0.0110338]
[1765293009457,0.00016545,90642.0,90641.0,0.0110327]
[1765293010469,0.00016545,90642.0,90626.0,0.3608]
[1765293010690,0.0110342,90629.0,90626.0,0.3608]
[1765293010862,0.0110346,90626.0,90624.0,0.00016545]
[1765293011671,0.3608,90625.0,90624.0,0.00016545]
[1765293012470,0.3608,90626.0,90624.0,0.00016545]
[1765293012657,0.0110347,90625.0,90613.0,0.0110361]
[1765293012864,0.3718345,90626.0,90616.0,0.0110358]
[1765293013175,0.3608,90626.0,90619.0,0.0110353]
[1765293013367,0.3608,90626.0,90611.0,0.0110363]
[1765293013672,0.3608,90626.0,90621.0,0.0110351]
[1765293013673,0.002,90625.0,90621.0,0.0110351]
[1765293013968,0.3608,90626.0,90621.0,0.0110351]
[1765293014169,0.3618,90626.0,90617.0,0.0110355]
[1765293014364,0.3618,90626.0,90616.0,0.001]
[1765293015164,0.3618,90626.0,90621.0,0.0110351]
[1765293015774,0.3618,90626.0,90623.0,0.0110348]
[1765293016474,0.3618,90626.0,90619.0,0.0110354]
[1765293016667,0.3608,90626.0,90624.0,0.0110348]
[1765293016959,0.3618,90626.0,90624.0,0.0110348]
[1765293017663,0.001,90626.0,90624.0,0.0110348]
[1765293017864,0.3608,90644.0,90641.0,0.0110327]
[1765293018068,0.3608,90660.0,90641.0,0.3718327]
[1765293018373,0.3608,90652.0,90641.0,0.3718327]
[1765293018775,0.3608,90660.0,90659.0,0.0110305]
[1765293018964,0.3608,90660.0,90658.0,0.0110306]
[1765293019477,0.3718294,90668.0,90658.0,0.0110306]
[1765293019671,0.3608,90668.0,90660.0,0.0110304]
[1765293019988,0.0110299,90664.0,90656.0,0.0110308]
[1765293020177,0.004,90660.0,90654.0,0.00016545]
[1765293020374,0.004,90660.0,90658.0,0.0110305]
[1765293020576,0.00174663,90660.0,90658.0,0.0110305]
[1765293021274,0.00174663,90660.0,90654.0,0.00016545]
[1765293021576,0.0110299,90664.0,90654.0,0.01119655]
[1765293021776,0.0130295,90668.0,90660.0,0.001]
[1765293022071,0.002,90668.0,90660.0,0.001]
[1765293022271,0.00016545,90672.0,90654.0,0.00116545]
[1765293022468,0.001,90660.0,90654.0,0.00416545]
[1765293022671,0.3608,90657.0,90654.0,0.00416545]
[1765293022869,0.3608,90657.0,90654.0,0.00016545]
[1765293023271,0.0110305,90660.0,90654.0,0.00016545]
[1765293023272,0.3608,90666.0,90654.0,0.00016545]
[1765293023667,0.3608,90666.0,90658.0,0.0110306]
[1765293023668,0.001,90660.0,90658.0,0.0110306]
[1765293023868,0.001,90660.0,90657.0,0.0110307]
[1765293024073,0.001,90660.0,90655.0,0.011031]
[1765293024374,0.0110308,90657.0,90654.0,0.00216545]
[1765293024578,0.3608,90655.0,90654.0,0.00216545]
[1765293025065,0.3608,90655.0,90654.0,0.00116545]
[1765293025266,0.3608,90655.0,90654.0,0.00216545]
[1765293025470,0.01,90657.0,90654.0,0.01219655]
[1765293025692,0.003,90655.0,90654.0,0.01319655]
[1765293025980,0.003,90655.0,90654.0,0.01219655]
[1765293026181,0.01,90655.0,90654.0,0.01319655]
[1765293026666,0.0017388,90655.0,90654.0,0.01219655]
[1765293026867,0.001,90655.0,90654.0,0.01319655]
[1765293027171,0.3718267,90691.0,90671.0,0.0110291]
[1765293027367,0.0593315,90700.0,90671.0,0.3718291]
[1765293027572,0.3608,90701.0,90694.0,0.0110262]
[1765293027882,0.3608,90701.0,90690.0,0.19494154]
[1765293028175,0.0110262,90695.0,90688.0,0.0110269]
[1765293028680,0.0110258,90698.0,90688.0,0.0110269]
[1765293028865,0.0110275,90685.0,90682.0,0.00016545]
[1765293029071,0.3608,90683.0,90682.0,0.00016545]
[1765293029476,0.0110286,90675.0,90665.0,0.0110297]
[1765293029675,0.0110282,90679.0,90670.0,0.0110292]
[1765293029879,0.0110282,90679.0,90660.0,0.55574154]
[1765293029880,0.3718276,90683.0,90673.0,0.0110287]
[1765293030076,0.3608,90683.0,90672.0,0.0110288]
[1765293030386,0.0110281,90680.0,90671.0,0.0110291]
[1765293030579,0.0110281,90679.0,90670.0,0.0110292]